lending/lending_fUSD_20250516
["ID","MTS","AMOUNT","RATE_DAILY","PERIOD"]
[361294033,1747427466411,-537.37,0.00016986,2]
[361294034,1747427466421,-400.0,0.00016986,2]
[361294035,1747427466431,-816.87,0.00016986,2]
[361294036,1747427466440,-1186.32,0.00016986,2]
[361294037,1747427466450,-400.0,0.00016986,2]
[361294038,1747427466459,-755.58,0.00016986,2]
[361294039,1747427466469,-400.0,0.00016986,2]
[361294040,1747427466477,-424.6,0.00016986,2]
[361294041,1747427466488,-400.0,0.00016986,2]
[361294042,1747427466497,-400.0,0.00016986,2]
[361294043,1747427466507,-444.63,0.00016986,2]
[361294044,1747427466516,-524.19873599,0.00016986,2]
[361294045,1747427466526,-400.0,0.00016986,2]
[361294046,1747427466535,-1326.46,0.00016986,2]
[361294047,1747427466545,-400.0,0.00016986,2]
[361294048,1747427466554,-400.0,0.00016986,2]
[361294049,1747427466563,-682.29,0.00016986,2]
[361294050,1747427466572,-400.0,0.00016986,2]
[361294051,1747427466581,-400.0,0.00016986,2]
[361294052,1747427466590,-400.0,0.00016986,2]
[361294053,1747427466599,-1170.58,0.00016986,2]
[361294054,1747427466609,-400.0,0.00016986,2]
[361294055,1747427466619,-860.94,0.00016986,2]
[361294056,1747427466629,-1301.72,0.00016986,2]
[361294057,1747427466639,-400.0,0.00016986,2]
[361294058,1747427466650,-400.0,0.00016986,2]
[361294059,1747427466659,-734.54,0.00016986,2]
[361294060,1747427466667,-448.64,0.00016986,2]
[361294061,1747427466676,-1553.96,0.00016986,2]
[361294062,1747427466687,-738.54,0.00016986,2]
[361294063,1747427466696,-1528.52,0.00016986,2]
[361294064,1747427466705,-400.0,0.00016986,2]
[361294065,1747427466715,-500.0,0.00016986,2]
[361294066,1747427466725,-500.0,0.00016986,2]
[361294067,1747427466735,-500.0,0.00016986,2]
[361294068,1747427466744,-500.0,0.00016986,2]
[361294069,1747427466754,-400.0,0.00016986,2]
[361294070,1747427466763,-487.96,0.00016986,2]
[361294071,1747427466773,-400.0,0.00016986,2]
[361294072,1747427466782,-400.0,0.00016986,2]
[361294073,1747427466791,-373.032667,0.00016986,2]
[361294074,1747427466800,-931.93,0.00016986,2]
[361294075,1747427466810,-373.032667,0.00016986,2]
[361294076,1747427466819,-3832.1,0.00016986,2]
[361294077,1747427466832,-261.604706,0.00016986,2]
[361294078,1747427466842,-421.44,0.00016986,2]
[361294079,1747427466851,-1503.2,0.00016986,2]
[361294080,1747427466863,-476.03,0.00016986,2]
[361294081,1747427466872,-151.0,0.00016986,2]
[361294082,1747427466882,-586.56,0.00016986,2]
[361294083,1747427466892,-373.032667,0.00016986,2]
[361294084,1747427466902,-373.032667,0.00016986,2]
[361294085,1747427466911,-261.604706,0.00016986,2]
[361294086,1747427466921,-1213.13,0.00016986,2]
[361294087,1747427466930,-492.97,0.00016986,2]
[361294088,1747427466940,-400.0,0.00016986,2]
[361294089,1747427466949,-535.48,0.00016986,2]
[361294090,1747427466958,-23476.01224178,0.00016986,2]
[361294091,1747427467181,2300.0,0.00027397,120]
[361294092,1747427467731,-472.78326183,0.00016428,2]
[361294093,1747427467741,-151.0,0.00016438,2]
[361294094,1747427467750,-419.61,0.00016438,2]
[361294095,1747427467759,-151.0,0.00016712,2]
[361294096,1747427467768,-219.110226,0.00016712,2]
[361294097,1747427467777,-131096.72775822,0.00016986,2]
[361294098,1747427467787,-400.0,0.00016986,2]
[361294099,1747427467796,-537.81,0.00016986,2]
[361294100,1747427467806,-400.0,0.00016986,2]
[361294101,1747427467815,-848.51,0.00016986,2]
[361294102,1747427467824,-3227.83,0.00016986,2]
[361294103,1747427467834,-400.0,0.00016986,2]
[361294104,1747427467843,-646.0,0.00016986,2]
[361294105,1747427467852,-1091.18,0.00016986,2]
[361294106,1747427467861,-5241.01,0.00016986,2]
[361294107,1747427467871,-967.29,0.00016986,2]
[361294108,1747427467880,-646.53,0.00016986,2]
[361294109,1747427467889,-400.0,0.00016986,2]
[361294110,1747427467898,-498.18,0.00016986,2]
[361294111,1747427467907,-400.0,0.00016986,2]
[361294112,1747427467917,-1466.02,0.00016986,2]
[361294113,1747427467926,-400.0,0.00016986,2]
[361294114,1747427467935,-816.21,0.00016986,2]
[361294115,1747427467944,-1389.8,0.00016986,2]
[361294116,1747427467953,-400.0,0.00016986,2]
[361294117,1747427467962,-400.0,0.00016986,2]
[361294118,1747427467971,-400.0,0.00016986,2]
[361294119,1747427467980,-608.74,0.00016986,2]
[361294120,1747427467989,-702.34,0.00016986,2]
[361294121,1747427467999,-441.39,0.00016986,2]
[361294122,1747427468008,-400.0,0.00016986,2]
[361294123,1747427468017,-893.38539372,0.00016986,2]
[361294124,1747427469216,-301.21387721,0.00014608,2]
[361294125,1747427469226,-347.70716794,0.00016438,2]
[361294126,1747427469235,-151.0,0.00016438,2]
[361294127,1747427469244,-450.0,0.00016438,2]
[361294128,1747427469254,-546.69837946,0.00016438,2]
[361294129,1747427469264,-150.0,0.00016438,2]
[361294130,1747427469273,-400.0,0.00016438,2]
[361294131,1747427469283,-400.0,0.00016438,2]
[361294132,1747427469292,-400.0,0.00016712,2]
[361294133,1747427469301,-199.01807656,0.00016886,2]
[361294134,1747427469311,-151.0,0.0001692,2]
[361294135,1747427469320,-472.78326183,0.00016976,2]
[361294136,1747427469330,-653.97301028,0.00016986,2]
[361294137,1747427469339,-3159.88,0.00016986,2]
[361294138,1747427469349,-1547.358404,0.00016986,2]
[361294139,1747427469359,-1547.358404,0.00016986,2]
[361294140,1747427469369,-1711.22,0.00016986,2]
[361294141,1747427469378,-400.0,0.00016986,2]
[361294142,1747427469388,-456.3,0.00016986,2]
[361294143,1747427469397,-689.98,0.00016986,2]
[361294144,1747427469407,-550.23,0.00016986,2]
[361294145,1747427469416,-1547.358404,0.00016986,2]
[361294146,1747427469426,-1547.358404,0.00016986,2]
[361294147,1747427469435,-1547.358404,0.00016986,2]
[361294148,1747427469445,-400.0,0.00016986,2]
[361294149,1747427469455,-909.77,0.00016986,2]
[361294150,1747427469465,-400.0,0.00016986,2]
[361294151,1747427469475,-682.31,0.00016986,2]
[361294152,1747427469484,-400.0,0.00016986,2]
[361294153,1747427469494,-11646.27,0.00016986,2]
[361294154,1747427469504,-151.0,0.00016986,2]
[361294155,1747427469513,-493.46,0.00016986,2]
[361294156,1747427469523,-151.0,0.00016986,2]
[361294157,1747427469533,-151.0,0.00016986,2]
[361294158,1747427469542,-1419.79,0.00016986,2]
[361294159,1747427469552,-400.0,0.00016986,2]
[361294160,1747427469561,-400.0,0.00016986,2]
[361294161,1747427469571,-3107.61,0.00016986,2]
[361294162,1747427469581,-481.98,0.00016986,2]
[361294163,1747427469590,-556.46,0.00016986,2]
[361294164,1747427469600,-269.09727887,0.00016986,2]
[361294165,1747427469609,-400.0,0.00016986,2]
[361294166,1747427469619,-400.0,0.00016986,2]
[361294167,1747427469628,-736.55,0.00016986,2]
[361294168,1747427469640,-400.0,0.00016986,2]
[361294169,1747427469649,-791.95,0.00016986,2]
[361294170,1747427469659,-400.0,0.00016986,2]
[361294171,1747427469668,-1220.55,0.00016986,2]
[361294172,1747427469678,-400.0,0.00016986,2]
[361294173,1747427469687,-400.0,0.00016986,2]
[361294174,1747427469696,-400.0,0.00016986,2]
[361294175,1747427469706,-888.02,0.00016986,2]
[361294176,1747427469717,-400.0,0.00016986,2]
[361294177,1747427469726,-2127.43,0.00016986,2]
[361294178,1747427469736,-400.0,0.00016986,2]
[361294179,1747427469746,-655.8,0.00016986,2]
[361294180,1747427469756,-1462.49,0.00016986,2]
[361294181,1747427469765,-701.53,0.00016986,2]
[361294182,1747427469775,-776.74,0.00016986,2]
[361294183,1747427469784,-400.0,0.00016986,2]
[361294184,1747427469794,-918.35,0.00016986,2]
[361294185,1747427469804,-1727.98,0.00016986,2]
[361294186,1747427469814,-659.06,0.00016986,2]
[361294187,1747427469824,-2079.45,0.00016986,2]
[361294188,1747427469833,-469.17,0.00016986,2]
[361294189,1747427469843,-400.0,0.00016986,2]
[361294190,1747427469852,-400.0,0.00016986,2]
[361294191,1747427469863,-847.36,0.00016986,2]
[361294192,1747427469873,-412.67,0.00016986,2]
[361294193,1747427469883,-494.09,0.00016986,2]
[361294194,1747427469892,-1100.56,0.00016986,2]
[361294195,1747427469902,-951.5,0.00016986,2]
[361294196,1747427469911,-150.0,0.00016986,2]
[361294197,1747427469921,-1165.59,0.00016986,2]
[361294198,1747427469930,-3732.01,0.00016986,2]
[361294199,1747427469940,-931.99,0.00016986,2]
[361294200,1747427469949,-544.26,0.00016986,2]
[361294201,1747427469959,-401.01,0.00016986,2]
[361294202,1747427469969,-2116.97,0.00016986,2]
[361294203,1747427469978,-3194.03,0.00016986,2]
[361294204,1747427469988,-3064.33,0.00016986,2]
[361294205,1747427469998,-387.08673548,0.00016986,2]
[361294206,1747427470008,-197.20460192,0.00016986,2]
[361294207,1747427470017,-400.0,0.00016986,2]
[361294208,1747427470027,-932.31,0.00016986,2]
[361294209,1747427470037,-896.0,0.00016986,2]
[361294210,1747427470046,-1379.76,0.00016986,2]
[361294211,1747427470056,-607.46,0.00016986,2]
[361294212,1747427470065,-514.32,0.00016986,2]
[361294213,1747427470074,-558.29,0.00016986,2]
[361294214,1747427470084,-2149.72,0.00016986,2]
[361294215,1747427470094,-1555.05,0.00016986,2]
[361294216,1747427470103,-400.0,0.00016986,2]
[361294217,1747427470112,-1573.0,0.00016986,2]
[361294218,1747427470122,-2218.41,0.00016986,2]
[361294219,1747427470131,-400.0,0.00016986,2]
[361294220,1747427470141,-940.76,0.00016986,2]
[361294221,1747427470150,-2669.08,0.00016986,2]
[361294222,1747427470159,-581.48,0.00016986,2]
[361294223,1747427470169,-400.0,0.00016986,2]
[361294224,1747427470179,-400.0,0.00016986,2]
[361294225,1747427470188,-1965.28,0.00016986,2]
[361294226,1747427470198,-1099.39,0.00016986,2]
[361294227,1747427470207,-400.0,0.00016986,2]
[361294228,1747427470216,-400.0,0.00016986,2]
[361294229,1747427470225,-858.67,0.00016986,2]
[361294230,1747427470234,-151.0,0.00016986,2]
[361294231,1747427470243,-151.0,0.00016986,2]
[361294232,1747427470252,-500.0,0.00016986,2]
[361294233,1747427470261,-400.0,0.00016986,2]
[361294234,1747427470270,-3306.67,0.00016986,2]
[361294235,1747427470279,-2675.57,0.00016986,2]
[361294236,1747427470288,-151.0,0.00016986,2]
[361294237,1747427470297,-500.0,0.00016986,2]
[361294238,1747427470306,-570.99,0.00016986,2]
[361294239,1747427470315,-151.0,0.00016986,2]
[361294240,1747427470324,-28807.8989387,0.00016986,2]
[361294241,1747427470333,-500.0,0.00016986,2]
[361294242,1747427470342,-400.0,0.00016986,2]
[361294243,1747427470351,-500.0,0.00016986,2]
[361294244,1747427470360,-500.0,0.00016986,2]
[361294245,1747427470370,-500.0,0.00016986,2]
[361294246,1747427470380,-500.0,0.00016986,2]
[361294247,1747427470389,-10803.9,0.00016986,2]
[361294248,1747427470398,-500.0,0.00016986,2]
[361294249,1747427470407,-439.35,0.00016986,2]
[361294250,1747427470417,-500.0,0.00016986,2]
[361294251,1747427470426,-500.0,0.00016986,2]
[361294252,1747427470435,-434.89,0.00016986,2]
[361294253,1747427470444,-6526.76,0.00016986,2]
[361294254,1747427470455,-500.0,0.00016986,2]
[361294255,1747427470464,-500.0,0.00016986,2]
[361294256,1747427470473,-500.0,0.00016986,2]
[361294257,1747427470482,-500.0,0.00016986,2]
[361294258,1747427470492,-500.0,0.00016986,2]
[361294259,1747427470501,-523.0,0.00016986,2]
[361294260,1747427470510,-432.91,0.00016986,2]
[361294261,1747427470520,-400.0,0.00016986,2]
[361294262,1747427470529,-2955.67,0.00016986,2]
[361294263,1747427470539,-1074.15,0.00016986,2]
[361294264,1747427470548,-500.0,0.00016986,2]
[361294265,1747427470557,-400.0,0.00016986,2]
[361294266,1747427470566,-1449.33,0.00016986,2]
[361294267,1747427470576,-400.0,0.00016986,2]
[361294268,1747427470585,-799.16,0.00016986,2]
[361294269,1747427470595,-637.72,0.00016986,2]
[361294270,1747427470604,-2564.36,0.00016986,2]
[361294271,1747427470613,-965.77,0.00016986,2]
[361294272,1747427470623,-157.40846463,0.00016986,2]
[361294273,1747427470954,-400.0,0.00016986,2]
[361294274,1747427470973,-6599.36,0.00016986,2]
[361294275,1747427470983,-400.0,0.00016986,2]
[361294276,1747427470993,-728.97,0.00016986,2]
[361294277,1747427471002,-400.0,0.00016986,2]
[361294278,1747427471012,-949.18,0.00016986,2]
[361294279,1747427471022,-3612.5530394,0.00016986,2]
[361294280,1747427471031,-4940.87,0.00016986,2]
[361294281,1747427471041,-1083.43,0.00016986,2]
[361294282,1747427471050,-400.0,0.00016986,2]
[361294283,1747427471060,-988.05,0.00016986,2]
[361294284,1747427471070,-825.45,0.00016986,2]
[361294285,1747427471079,-5740.60548606,0.00016986,2]
[361294286,1747427471097,-10308.69451394,0.00016986,2]
[361294287,1747427471107,-1171.75,0.00016986,2]
[361294288,1747427471117,-1108.63,0.00016986,2]
[361294289,1747427471126,-400.0,0.00016986,2]
[361294290,1747427471137,-400.0,0.00016986,2]
[361294291,1747427471146,-400.0,0.00016986,2]
[361294292,1747427471156,-3556.69,0.00016986,2]
[361294293,1747427471166,-400.0,0.00016986,2]
[361294294,1747427471176,-750.15,0.00016986,2]
[361294295,1747427471185,-3259.67,0.00016986,2]
[361294296,1747427471195,-1336.06,0.00016986,2]
[361294297,1747427471204,-210.51700713,0.00016986,2]
[361294298,1747427471214,-595.73,0.00016986,2]
[361294299,1747427471223,-1147.25,0.00016986,2]
[361294300,1747427471233,-400.0,0.00016986,2]
[361294301,1747427471242,-1122.71,0.00016986,2]
[361294302,1747427471251,-2717.91,0.00016986,2]
[361294303,1747427471261,-8204.31,0.00016986,2]
[361294304,1747427471270,-670.3,0.00016986,2]
[361294305,1747427471280,-797.03,0.00016986,2]
[361294306,1747427471289,-402.97,0.00016986,2]
[361294307,1747427471298,-805.51,0.00016986,2]
[361294308,1747427471309,-799.94,0.00016986,2]
[361294309,1747427471319,-3011.25,0.00016986,2]
[361294310,1747427471328,-400.0,0.00016986,2]
[361294311,1747427471338,-759.85,0.00016986,2]
[361294312,1747427471347,-505.69407735,0.00016986,2]
[361294313,1747427471357,-2306.15,0.00016986,2]
[361294314,1747427471367,-946.56,0.00016986,2]
[361294315,1747427471377,-441.21,0.00016986,2]
[361294316,1747427471387,-366.052597,0.00016986,2]
[361294317,1747427471397,-366.052597,0.00016986,2]
[361294318,1747427471406,-366.052597,0.00016986,2]
[361294319,1747427471416,-385.30661058,0.00016986,2]
[361294320,1747427471428,-14.69338942,0.00016986,2]
[361294321,1747427471439,-897.09,0.00016986,2]
[361294322,1747427471449,-504.13,0.00016986,2]
[361294323,1747427471459,-400.0,0.00016986,2]
[361294324,1747427471468,-4983.33,0.00016986,2]
[361294325,1747427471478,-366.052597,0.00016986,2]
[361294326,1747427471488,-366.052597,0.00016986,2]
[361294327,1747427471497,-366.052597,0.00016986,2]
[361294328,1747427471507,-400.0,0.00016986,2]
[361294329,1747427471516,-1980.23,0.00016986,2]
[361294330,1747427471527,-850.83,0.00016986,2]
[361294331,1747427471536,-400.0,0.00016986,2]
[361294332,1747427471546,-1143.72,0.00016986,2]
[361294333,1747427471555,-1113.02,0.00016986,2]
[361294334,1747427471565,-151.0,0.00016986,2]
[361294335,1747427471574,-7262.11,0.00016986,2]
[361294336,1747427471583,-151.0,0.00016986,2]
[361294337,1747427471593,-151.0,0.00016986,2]
[361294338,1747427471602,-11.8814589,0.00016986,2]
[361294339,1747427471614,-139.1185411,0.00016986,2]
[361294340,1747427471624,-657.18,0.00016986,2]
[361294341,1747427471634,-2753.53,0.00016986,2]
[361294342,1747427471646,-400.0,0.00016986,2]
[361294343,1747427471656,-571.97,0.00016986,2]
[361294344,1747427471666,-45.14170581,0.00016986,2]
[361294345,1747427471678,-580.85829419,0.00016986,2]
[361294346,1747427471689,-459.02,0.00016986,2]
[361294347,1747427471699,-595.42,0.00016986,2]
[361294348,1747427471709,-400.0,0.00016986,2]
[361294349,1747427471719,-400.0,0.00016986,2]
[361294350,1747427471729,-151.0,0.00016986,2]
[361294351,1747427471739,-14412.19,0.00016986,2]
[361294352,1747427471748,-151.0,0.00016986,2]
[361294353,1747427471757,-151.0,0.00016986,2]
[361294354,1747427471767,-6827.64,0.00016986,2]
[361294355,1747427471776,-151.0,0.00016986,2]
[361294356,1747427471785,-432.31,0.00016986,2]
[361294357,1747427471794,-400.0,0.00016986,2]
[361294358,1747427471804,-2669.6527608,0.00016986,2]
[361294359,1747427471813,-534.27,0.00016986,2]
[361294360,1747427471823,-945.65,0.00016986,2]
[361294361,1747427471833,-799.27,0.00016986,2]
[361294362,1747427471842,-683.31,0.00016986,2]
[361294363,1747427471851,-1053.76,0.00016986,2]
[361294364,1747427471860,-143166.03,0.00016986,2]
[361294365,1747427471869,-2860.44,0.00016986,2]
[361294366,1747427471879,-1565.66,0.00016986,2]
[361294367,1747427471889,-400.0,0.00016986,2]
[361294368,1747427471898,-1809.26,0.00016986,2]
[361294369,1747427471908,-400.0,0.00016986,2]
[361294370,1747427471918,-425.54,0.00016986,2]
[361294371,1747427471927,-13125.4,0.00016986,2]
[361294372,1747427471937,-1012.33,0.00016986,2]
[361294373,1747427471946,-935.85,0.00016986,2]
[361294374,1747427471956,-400.0,0.00016986,2]
[361294375,1747427471967,-714.72,0.00016986,2]
[361294376,1747427471977,-839.63,0.00016986,2]
[361294377,1747427471987,-1165.35,0.00016986,2]
[361294378,1747427471997,-2226.51,0.00016986,2]
[361294379,1747427472007,-533.85,0.00016986,2]
[361294380,1747427472016,-670.69,0.00016986,2]
[361294381,1747427472027,-465.84,0.00016986,2]
[361294382,1747427472037,-1159.37,0.00016986,2]
[361294383,1747427472047,-11371.42,0.00016986,2]
[361294384,1747427472058,-510.33,0.00016986,2]
[361294385,1747427472069,-400.0,0.00016986,2]
[361294386,1747427472079,-2441.47,0.00016986,2]
[361294387,1747427472089,-400.0,0.00016986,2]
[361294388,1747427472098,-1245.34,0.00016986,2]
[361294389,1747427472107,-10119.83,0.00016986,2]
[361294390,1747427472117,-18653.07,0.00016986,2]
[361294391,1747427472127,-2091.86,0.00016986,2]
[361294392,1747427472136,-400.0,0.00016986,2]
[361294393,1747427472146,-861.13,0.00016986,2]
[361294394,1747427472155,-1508.53,0.00016986,2]
[361294395,1747427472164,-400.0,0.00016986,2]
[361294396,1747427472173,-8564.41,0.00016986,2]
[361294397,1747427472183,-400.0,0.00016986,2]
[361294398,1747427472192,-479.85,0.00016986,2]
[361294399,1747427472202,-440.87,0.00016986,2]
[361294400,1747427472211,-400.0,0.00016986,2]
[361294401,1747427472221,-1494.04,0.00016986,2]
[361294402,1747427472230,-150.0,0.00016986,2]
[361294403,1747427472239,-190.5024237,0.00016986,2]
[361294404,1747427472248,-1342.66,0.00016986,2]
[361294405,1747427472257,-1403.0,0.00016986,2]
[361294406,1747427472266,-943.74,0.00016986,2]
[361294407,1747427472275,-400.0,0.00016986,2]
[361294408,1747427472285,-999.35,0.00016986,2]
[361294409,1747427472294,-1256.01,0.00016986,2]
[361294410,1747427472303,-400.0,0.00016986,2]
[361294411,1747427472312,-3017.46,0.00016986,2]
[361294412,1747427472322,-1791.16,0.00016986,2]
[361294413,1747427472331,-500.0,0.00016986,2]
[361294414,1747427472340,-500.0,0.00016986,2]
[361294415,1747427472349,-500.0,0.00016986,2]
[361294416,1747427472358,-500.0,0.00016986,2]
[361294417,1747427472368,-500.0,0.00016986,2]
[361294418,1747427472377,-10414.62,0.00016986,2]
[361294419,1747427472386,-500.0,0.00016986,2]
[361294420,1747427472395,-500.0,0.00016986,2]
[361294421,1747427472405,-500.0,0.00016986,2]
[361294422,1747427472415,-563.35,0.00016986,2]
[361294423,1747427472427,-500.0,0.00016986,2]
[361294424,1747427472436,-400.0,0.00016986,2]
[361294425,1747427472446,-500.0,0.00016986,2]
[361294426,1747427472455,-400.0,0.00016986,2]
[361294427,1747427472464,-500.0,0.00016986,2]
[361294428,1747427472473,-500.0,0.00016986,2]
[361294429,1747427472483,-500.0,0.00016986,2]
[361294430,1747427472492,-947.0,0.00016986,2]
[361294431,1747427472502,-400.0,0.00016986,2]
[361294432,1747427472511,-1033.64,0.00016986,2]
[361294433,1747427472521,-46312.949299,0.00016986,2]
[361294434,1747427472531,-735.61,0.00016986,2]
[361294435,1747427472540,-1122.71,0.00016986,2]
[361294436,1747427472549,-150.0,0.00016986,2]
[361294437,1747427472558,-155.64567979,0.00016986,2]
[361294438,1747427472568,-439.59,0.00016986,2]
[361294439,1747427472577,-1541.13,0.00016986,2]
[361294440,1747427472587,-400.0,0.00016986,2]
[361294441,1747427472597,-400.0,0.00016986,2]
[361294442,1747427472607,-5611.59,0.00016986,2]
[361294443,1747427472617,-282.224255,0.00016986,2]
[361294444,1747427472627,-647.62,0.00016986,2]
[361294445,1747427472638,-282.224255,0.00016986,2]
[361294446,1747427472651,-400.0,0.00016986,2]
[361294447,1747427472660,-282.224255,0.00016986,2]
[361294448,1747427472669,-282.224255,0.00016986,2]
[361294449,1747427472679,-776.17,0.00016986,2]
[361294450,1747427472688,-23524.04,0.00016986,2]
[361294451,1747427472697,-400.0,0.00016986,2]
[361294452,1747427472707,-282.224255,0.00016986,2]
[361294453,1747427472717,-400.0,0.00016986,2]
[361294454,1747427472727,-282.224255,0.00016986,2]
[361294455,1747427472736,-672.55,0.00016986,2]
[361294456,1747427472745,-282.224255,0.00016986,2]
[361294457,1747427472754,-864.69,0.00016986,2]
[361294458,1747427472763,-282.224255,0.00016986,2]
[361294459,1747427472772,-2789.84658855,0.00016986,2]
[361294460,1747427744835,72615.05172105,0.00027,120]
[361294461,1747427882632,450.0,0.0001,2]
[361294479,1747428631882,-500.81,0.00013353,2]
[361294480,1747428631893,-200.0,0.00013526,2]
[361294481,1747428631905,-450.41,0.00013699,2]
[361294482,1747428631917,-200.0,0.00014407,2]
[361294483,1747428631929,-200.0,0.00014688,2]
[361294484,1747428631940,-200.0,0.00015068,2]
[361294485,1747428631951,-200.0,0.00015068,2]
[361294486,1747428631962,-150.0,0.00015181,2]
[361294487,1747428631973,-1200.0,0.00015188,2]
[361294488,1747428631984,-9198.9,0.00015189,2]
[361294489,1747428631999,-500.0,0.00015308,2]
[361294490,1747428632010,-186.41,0.00015396,2]
[361294491,1747428632022,-882.94,0.00015396,2]
[361294492,1747428632035,-389.42,0.00015438,2]
[361294493,1747428632047,-150.0,0.00015469,7]
[361294494,1747428632057,-171.55,0.00015499,2]
[361294495,1747428632068,-500.81,0.00015617,2]
[361294496,1747428632079,-250.0,0.00015771,2]
[361294497,1747428632090,-1211.46,0.00015792,2]
[361294498,1747428632101,-164.42,0.00015818,2]
[361294499,1747428632113,-1727.76971107,0.000159,2]
[361294500,1747428632124,-1000.0,0.00015978,2]
[361294501,1747428632134,-180.8,0.00016065,2]
[361294502,1747428632144,-375.0,0.00016198,2]
[361294503,1747428632155,-1727.76971095,0.0001621,2]
[361294504,1747428632166,-375.0,0.00016298,2]
[361294506,1747428632184,-207.4,0.00016328,2]
[361294509,1747428632196,-728.48658458,0.00016338,2]
[361294511,1747428632207,-151.57632377,0.00016338,2]
[361294513,1747428632218,-6045.03450036,0.00016338,2]
[361294515,1747428632229,-225.91040796,0.00016338,2]
[361294517,1747428632240,-375.0,0.00016398,2]
[361294519,1747428632251,-165.1,0.00016428,2]
[361294521,1747428632262,-693.3919763,0.00016428,2]
[361294522,1747428632273,-599.60298507,0.00016428,2]
[361294524,1747428632284,-1307.55,0.00016437,2]
[361294526,1747428632294,-179.927,0.00016437,2]
[361294528,1747428632305,-550.0,0.00016437,2]
[361294530,1747428632316,-151.0,0.00016438,2]
[361294532,1747428632328,-400.0,0.00016438,2]
[361294534,1747428632339,-288.23330739,0.00016438,2]
[361294537,1747428632351,-500.0,0.00016438,2]
[361294539,1747428632362,-185.43254231,0.00016438,2]
[361294542,1747428632373,-400.0,0.00016438,2]
[361294545,1747428632383,-400.0,0.00016438,2]
[361294548,1747428632394,-400.0,0.00016438,2]
[361294551,1747428632406,-400.0,0.00016438,2]
[361294554,1747428632416,-231.10477627,0.00016438,2]
[361294556,1747428632427,-400.0,0.00016438,2]
[361294559,1747428632438,-488.840882,0.00016438,2]
[361294561,1747428632449,-154.501651,0.00016438,2]
[361294563,1747428632459,-278.77050914,0.00016438,2]
[361294565,1747428632470,-400.0,0.00016438,2]
[361294567,1747428632481,-650.82,0.00016438,2]
[361294569,1747428632492,-400.0,0.00016438,2]
[361294572,1747428632502,-400.0,0.00016438,2]
[361294574,1747428632513,-400.0,0.00016438,2]
[361294575,1747428632523,-400.0,0.00016438,2]
[361294577,1747428632537,-400.0,0.00016438,2]
[361294579,1747428632552,-400.0,0.00016438,2]
[361294581,1747428632566,-400.0,0.00016438,2]
[361294583,1747428632577,-400.0,0.00016438,2]
[361294586,1747428632587,-152.197825,0.00016438,2]
[361294588,1747428632598,-617.4,0.00016438,2]
[361294590,1747428632608,-400.0,0.00016438,2]
[361294592,1747428632619,-457.17,0.00016438,2]
[361294594,1747428632629,-400.0,0.00016438,2]
[361294596,1747428632640,-500.0,0.00016438,2]
[361294598,1747428632651,-500.0,0.00016438,2]
[361294600,1747428632661,-500.0,0.00016438,2]
[361294602,1747428632672,-500.0,0.00016438,2]